bitfinex/quotes_ETHUSD_20230118
["timestamp","ask_amount","ask_price","bid_price","bid_amount"]
[1674061643274,0.3267521,1557.4,1556.9,1.0]
[1674061643499,0.3267521,1557.4,1556.8,6.46311]
[1674061643711,0.3267521,1557.4,1556.8,6.51411]
[1674061644319,0.3267521,1557.4,1556.8,0.091]
[1674061644553,0.3267521,1557.4,1556.7,6.51446]
[1674061644733,0.3267521,1557.4,1556.7,0.091]
[1674061644953,0.3267521,1557.4,1556.4,0.066]
[1674061644954,1.0,1557.3,1556.4,0.066]
[1674061645162,1.0,1557.1,1556.2,0.014]
[1674061645499,21.45223001,1557.1,1556.2,0.002]
[1674061645703,6.0,1557.0,1555.8,6.55348]
[1674061645927,9.27309,1556.9,1555.8,0.066]
[1674061646086,0.04800001,1556.9,1555.7,0.01682075]
[1674061646300,0.83206066,1556.8,1555.7,6.44447075]
[1674061646571,0.83206066,1556.8,1555.7,12.93859075]
[1674061646717,1.03000001,1556.9,1555.7,12.93859075]
[1674061646957,0.103,1556.8,1555.7,6.51062075]
[1674061647171,1.85491884,1556.8,1555.7,0.08282075]
[1674061647377,7.88491885,1556.8,1555.7,0.01682075]
[1674061647591,0.79991885,1556.8,1555.7,0.66131482]
[1674061647850,0.03000001,1556.9,1555.8,6.42754]
[1674061648019,0.75191884,1557.0,1555.8,6.55354]
[1674061648240,0.1018,1557.0,1555.9,1.0]
[1674061648436,0.03000001,1557.1,1556.1,12.85233]
[1674061648644,0.3267521,1557.4,1556.2,3.0]
[1674061648849,0.3267521,1557.4,1556.5,6.42445]
[1674061649059,0.3267521,1557.4,1556.5,6.52045]
[1674061649643,0.3267521,1557.4,1556.5,0.066]
[1674061649956,26.5977721,1557.4,1556.3,0.126]
[1674061650173,14.0,1556.7,1556.0,0.06]
[1674061650324,14.0,1556.7,1555.9,1.0]
[1674061650325,0.018,1556.7,1555.9,1.0]
[1674061650532,7.42239,1557.1,1555.9,0.99647713]
[1674061650533,3.0,1557.0,1555.9,0.99647713]
[1674061650809,6.72317,1556.9,1555.9,0.99647713]
[1674061651122,14.0,1556.8,1555.9,0.99647713]
[1674061651284,14.0,1556.6,1555.7,0.07682075]
[1674061651480,14.0,1556.6,1555.7,0.01682075]
[1674061651481,0.04800001,1556.6,1555.7,0.01682075]
[1674061651696,1.0,1556.1,1555.3,0.126]
[1674061651933,1.0,1556.1,1554.9,1.14203046]
[1674061651934,14.0,1556.0,1554.9,1.14203046]
[1674061652229,14.0,1555.7,1554.9,1.01603046]
[1674061652435,0.018,1555.7,1554.9,0.01603046]
[1674061652632,0.60200001,1556.0,1555.9,0.1743668]
[1674061652846,0.04800001,1556.2,1555.9,0.1743668]
[1674061653053,14.0,1556.2,1555.9,0.1743668]
[1674061653300,0.056,1556.2,1555.9,0.1743668]
[1674061653532,1.0,1556.1,1555.9,0.1743668]
[1674061653684,0.141,1556.3,1555.9,0.1743668]
[1674061653895,6.49114,1556.4,1555.9,0.1743668]
[1674061654160,14.0,1556.0,1555.9,0.1743668]
[1674061654314,0.618,1556.0,1555.9,0.1743668]
[1674061654533,0.554,1556.0,1555.9,0.1743668]
[1674061654743,0.141,1556.3,1555.9,0.1743668]
[1674061655003,0.066,1556.4,1555.9,0.1743668]
[1674061655216,0.002,1556.4,1555.9,0.1743668]
[1674061655432,0.075,1556.8,1556.0,6.42659]
[1674061655737,0.3267521,1557.4,1556.4,6.42507]
[1674061655738,0.075,1557.3,1556.4,6.42507]
[1674061655951,0.3267521,1557.4,1556.4,0.066]
[1674061656259,1.0,1557.2,1556.2,6.55162]
[1674061656470,1.0,1557.2,1556.2,6.49162]
[1674061656471,0.1,1557.1,1556.2,6.49162]
[1674061656693,0.075,1557.3,1556.2,6.49162]
[1674061656841,0.3267521,1557.4,1556.2,6.49162]
[1674061656842,0.3267521,1557.4,1556.2,6.55162]
[1674061657056,0.3267521,1557.4,1556.2,27.1840165]
[1674061657267,0.3267521,1557.4,1556.3,4.0]
[1674061657505,0.3267521,1557.4,1556.6,19.27239]
[1674061657714,0.3267521,1557.4,1556.9,6.42297]
[1674061657907,0.3267521,1557.4,1556.9,0.066]
[1674061658121,0.3267521,1557.4,1556.8,0.066]
[1674061658330,14.0,1557.2,1556.4,6.52094]
[1674061658591,0.066,1557.2,1556.5,0.01639732]
[1674061658737,0.3267521,1557.4,1556.5,6.44076732]
[1674061658951,0.3267521,1557.4,1556.5,6.50676732]
[1674061659312,0.3267521,1557.4,1556.5,6.53676732]
[1674061659502,0.3267521,1557.4,1556.5,6.50676732]
[1674061660043,0.3267521,1557.4,1556.6,1.0]
[1674061660203,0.3267521,1557.4,1556.7,6.4238]
[1674061660416,0.3267521,1557.4,1556.7,0.066]
[1674061660417,14.0,1557.3,1556.7,0.066]
[1674061660624,1.4,1557.2,1556.3,0.066]
[1674061660874,0.3767521,1557.4,1557.3,1.04909817]
[1674061661042,1.0,1557.3,1556.8,0.06]
[1674061661255,0.3267521,1557.4,1556.5,6.42459]
[1674061661463,0.3267521,1557.4,1556.5,6.4905]
[1674061661947,0.3267521,1557.4,1556.5,0.066]
[1674061662168,3.3267521,1557.4,1556.2,0.126]
[1674061662460,3.3267521,1557.4,1556.3,6.42513]
[1674061662461,0.4017521,1557.4,1556.3,6.42513]
[1674061662674,0.4017521,1557.4,1556.3,0.096]
[1674061662675,0.3267521,1557.4,1556.3,0.096]
[1674061662830,0.3267521,1557.4,1556.3,6.42512]
[1674061663042,0.3267521,1557.4,1556.4,1.0]
[1674061663290,0.3267521,1557.4,1556.7,12.84768]
[1674061663479,0.3267521,1557.4,1556.7,6.48984]
[1674061663692,0.3267521,1557.4,1556.8,7.42313]
[1674061663900,0.3267521,1557.4,1557.0,6.4224]
[1674061664113,0.3267521,1557.4,1557.1,4.0]
[1674061664344,0.3267521,1557.4,1557.2,12.84356]
[1674061664513,0.3267521,1557.4,1557.2,6.50416994]
[1674061664729,0.3267521,1557.4,1557.2,0.08238994]
[1674061664952,0.3267521,1557.4,1557.2,1.01638994]
[1674061665265,0.3267521,1557.4,1557.1,0.066]
[1674061665619,0.3267521,1557.4,1556.9,6.48881]
[1674061666303,0.3267521,1557.4,1557.1,6.42213]
[1674061666510,0.3267521,1557.4,1557.1,0.064]
[1674061666722,0.3267521,1557.4,1556.9,0.0163931]
[1674061666949,0.3267521,1557.4,1556.8,6.48907]
[1674061667188,0.3267521,1557.4,1556.8,0.066]
[1674061667396,0.851732,1557.3,1556.7,0.65525531]
[1674061667610,0.075,1557.6,1557.4,1.45790394]
[1674061667823,0.066,1557.9,1557.4,1.45790394]
[1674061667979,1.0,1557.8,1557.4,1.45790394]
[1674061668191,0.80801807,1557.7,1557.4,1.45790394]
[1674061668625,23.0,1557.5,1556.8,0.06]
[1674061668835,23.0,1557.5,1556.9,0.082]
[1674061668836,6.3,1557.4,1556.9,0.082]
[1674061669045,6.34310141,1557.4,1556.6,0.66766346]
[1674061669255,0.892895,1557.3,1556.6,0.66766346]
[1674061669465,1.86453639,1557.3,1556.5,0.66766346]
[1674061669711,1.73548826,1557.2,1556.5,0.66766346]
[1674061669962,1.68863314,1557.2,1556.7,0.66766346]
[1674061670131,2.0322671,1557.2,1556.7,1.78331114]
[1674061670493,2.66027453,1557.2,1556.8,1.11564768]
[1674061670682,2.66027453,1557.2,1556.7,0.66766346]
[1674061670683,2.66027453,1557.2,1556.7,0.72968346]
[1674061670857,14.0,1557.0,1556.8,1.11553208]
[1674061671067,0.066,1557.0,1556.5,0.066]
[1674061671324,0.066,1557.3,1556.5,7.09203346]
[1674061671515,0.86042802,1557.4,1556.6,1.11570315]
[1674061671705,3.0,1557.5,1556.6,1.11570315]
[1674061671918,0.86042802,1557.3,1556.6,1.11570315]
[1674061672116,8.0,1557.1,1556.6,1.11570315]
[1674061672326,14.0,1556.7,1556.4,0.66805917]
[1674061672537,0.066,1556.7,1556.4,0.66805917]
[1674061672746,3.29174759,1556.7,1556.4,0.66805917]
[1674061672979,3.29174759,1556.6,1556.4,0.66805917]
[1674061673232,0.066,1556.8,1556.4,7.09281917]
[1674061673384,0.0860428,1557.2,1556.4,7.09281917]
[1674061673385,3.29174759,1556.7,1556.5,0.66805917]
[1674061673749,0.066,1557.0,1556.5,0.66805917]
[1674061674061,3.0,1557.1,1556.4,0.73405917]
[1674061674062,1.73228561,1556.9,1556.4,0.73405917]
[1674061674215,3.29174759,1556.7,1556.5,0.66805917]
[1674061674426,3.29174759,1556.7,1556.5,7.09238917]
[1674061674636,0.066,1556.9,1556.5,0.73405917]
[1674061674637,3.29174759,1556.6,1556.5,0.73405917]
[1674061674895,0.066,1556.8,1556.5,0.66805917]
[1674061675103,0.01639309,1556.9,1556.4,0.73405917]
[1674061675104,3.29174759,1556.7,1556.4,0.73405917]
[1674061675315,0.066,1556.9,1556.4,0.66805917]
[1674061675486,3.29174759,1556.8,1556.5,0.66805917]
[1674061675681,3.29174759,1556.8,1556.3,6.4911]
[1674061675682,14.0,1556.7,1556.4,0.66805917]
[1674061675906,0.39517476,1556.7,1556.2,0.66805917]
[1674061676106,3.30814068,1556.6,1556.1,0.66805917]
[1674061676331,0.33081407,1556.5,1556.1,0.66805917]
[1674061676576,3.29174759,1556.4,1556.0,0.66805917]
[1674061677156,3.29174759,1556.4,1556.1,0.66805917]
[1674061677157,0.01639309,1556.4,1556.1,0.66805917]
[1674061677543,3.29174759,1556.2,1556.1,0.66805917]
[1674061677852,3.29174759,1556.2,1556.0,1.67110942]
[1674061678020,2.62213044,1556.1,1556.0,1.67110942]
[1674061678234,2.62213044,1556.1,1556.0,0.66805917]
[1674061678428,2.62213044,1556.1,1555.9,2.51391312]
[1674061678429,16.62213044,1556.1,1555.9,1.84547622]
[1674061678638,3.29174759,1556.0,1555.9,1.84547622]
[1674061678848,3.29174759,1556.0,1555.9,1.17741705]
[1674061679106,3.29174759,1556.0,1555.9,1.84614119]
[1674061679330,4.06274799,1556.0,1555.8,1.06905025]
[1674061679541,4.06274799,1556.0,1555.7,3.0596547]
[1674061679542,0.4062748,1555.9,1555.7,1.05705024]
[1674061680057,3.29174759,1555.8,1555.7,1.05705024]
[1674061680379,0.066,1556.0,1555.7,1.05705024]
[1674061680524,0.075,1556.7,1555.9,1.00439657]
[1674061680739,0.066,1556.8,1555.9,1.00439657]
[1674061680740,14.0,1556.6,1556.0,2.34347963]
[1674061680988,14.0,1556.6,1555.9,1.07039657]
[1674061680989,1.0,1556.5,1555.9,1.07039657]
[1674061681197,0.1,1556.4,1555.9,0.014]
[1674061681423,1.06107528,1556.5,1555.8,1.99160969]
[1674061681579,1.06107528,1556.5,1555.7,1.45919541]
[1674061681580,14.0,1555.9,1555.7,1.45919541]
[1674061681791,0.066,1555.9,1555.7,1.39319541]
[1674061682048,1.0,1556.3,1555.9,0.132]
[1674061682260,0.086,1556.0,1555.9,0.132]
[1674061682451,3.37774759,1556.0,1555.9,0.132]
[1674061682665,0.066,1556.2,1555.9,0.132]
[1674061682880,8.84107563,1556.0,1555.6,0.01682075]
[1674061683052,14.0,1555.7,1555.3,1.40508306]
[1674061683262,14.0,1555.7,1555.1,0.33176184]
[1674061683263,14.0,1555.5,1555.1,0.33176184]
[1674061683473,14.0,1555.5,1555.1,0.27576184]
[1674061683474,0.056,1555.5,1555.1,0.27576184]
[1674061683698,0.01,1555.7,1555.1,0.26576184]
[1674061683699,3.29174759,1555.2,1555.1,0.26576184]
[1674061683910,1.50503851,1555.2,1555.1,0.26576184]
[1674061684117,3.29174759,1555.2,1555.1,0.26576184]
[1674061684588,18.24276036,1555.2,1555.1,0.26576184]
[1674061684728,18.24276036,1555.2,1554.6,0.066]
[1674061684729,0.32917476,1555.1,1554.6,0.066]
[1674061684944,3.29174759,1554.7,1554.3,2.78912279]
[1674061685187,0.01639309,1555.0,1554.3,2.78912279]
[1674061685188,3.29174759,1554.5,1554.3,2.78912279]
[1674061685407,0.31302824,1554.4,1554.3,2.78912279]
[1674061685596,0.31302824,1554.4,1554.3,2.10495907]
[1674061686018,0.31302824,1554.4,1554.3,0.29600986]
[1674061686222,0.31302824,1554.4,1553.7,8.49378969]
[1674061686469,0.67592275,1554.0,1553.7,6.50218]
[1674061686627,0.6838936,1553.9,1553.7,0.066]
[1674061686835,0.66949861,1553.8,1553.5,2.05760969]
[1674061687106,0.66949861,1553.8,1553.3,8.76130464]
[1674061687107,0.712213,1553.6,1553.3,2.37954464]
[1674061687414,0.712213,1553.6,1553.3,2.32354464]
[1674061687729,0.67034455,1553.4,1553.2,2.32354464]
[1674061687944,0.67621899,1553.3,1553.2,2.32354464]
[1674061688155,1.0,1553.5,1553.2,2.32354464]
[1674061688323,1.0,1553.5,1553.2,0.02113627]
[1674061688685,14.1,1553.5,1553.1,0.066]
[1674061688830,14.1,1553.5,1552.8,1.0054857]
[1674061688831,0.166,1553.5,1552.8,1.0054857]
[1674061689202,14.0,1553.3,1552.8,1.0054857]
[1674061689370,14.0,1553.3,1552.7,0.03]
[1674061689371,0.066,1553.3,1552.6,3.04905411]
[1674061689584,14.0,1553.2,1552.6,2.98305411]
[1674061689802,0.03752937,1553.1,1552.6,2.98305411]
[1674061689988,14.0,1553.0,1552.6,2.98305411]
[1674061690196,0.066,1553.0,1552.6,2.98305411]
[1674061690407,14.0,1552.7,1552.6,2.98305411]
[1674061690616,14.0,1552.7,1552.6,2.73305411]
[1674061690617,14.152,1552.7,1552.6,2.73305411]
[1674061691140,14.152,1552.7,1552.4,0.066]
[1674061691357,0.152,1552.7,1552.4,0.064]
[1674061691463,14.0,1552.5,1552.3,1.1986951]
[1674061691679,0.066,1552.5,1552.3,1.1986951]
[1674061691880,14.0,1552.5,1552.3,1.1986951]
[1674061692095,0.10352937,1552.5,1551.9,0.4619944]
[1674061692324,0.03752937,1552.5,1551.9,0.4619944]
[1674061692532,1.0,1552.6,1552.5,0.05244424]
[1674061692794,9.0,1552.6,1551.9,0.4619944]
[1674061693114,2.85,1552.4,1551.9,64.4806727]
[1674061693333,11.85,1552.4,1551.9,0.016]
[1674061693485,4.03491748,1552.3,1551.8,0.01911746]
[1674061693851,16.856,1552.1,1551.8,0.01911746]
[1674061694064,1.0,1551.9,1551.6,0.066]
[1674061694217,1.8266,1552.0,1551.5,1.0047688]
[1674061694586,4.6856,1552.0,1551.5,0.0047688]
[1674061694895,1.6856,1552.0,1551.5,0.0047688]
[1674061695108,4.6856,1552.0,1551.5,0.0047688]
[1674061695298,6.36151133,1552.0,1551.5,0.0047688]
[1674061695476,7.42751133,1552.0,1551.5,0.0047688]
[1674061695687,0.141,1552.0,1551.5,0.0047688]
[1674061695936,1.02764804,1552.1,1551.5,0.0047688]
[1674061696105,0.075,1552.1,1551.5,0.0047688]
[1674061696318,0.40349175,1552.2,1551.5,0.0047688]
[1674061697105,1.36436885,1552.2,1551.5,0.0047688]
[1674061697311,0.13643689,1552.1,1551.5,0.0047688]
[1674061697510,1.43936885,1552.2,1551.5,0.0047688]
[1674061697842,1.075,1552.3,1551.5,0.0047688]
[1674061698054,1.075,1552.3,1551.5,3.0047688]
[1674061698055,1.0,1552.3,1551.5,3.0047688]
[1674061698214,0.066,1552.6,1551.7,2.835]
[1674061698215,0.01,1552.6,1551.7,2.835]
[1674061698420,1.0,1552.8,1552.0,3.0]
[1674061698631,1.0,1552.8,1552.2,19.3269]
[1674061698946,0.06,1553.1,1552.9,0.7894856]
[1674061699151,6.43612,1553.8,1552.9,0.7894856]
[1674061699152,3.626,1553.8,1552.9,0.7894856]
[1674061699422,0.3626,1553.7,1552.9,0.7894856]
[1674061699588,14.0,1553.5,1552.9,0.7894856]
[1674061699808,14.0,1553.5,1552.5,0.06]
[1674061699809,7.83755,1553.4,1552.5,0.06]
[1674061699992,2.847,1553.2,1552.1,1.06]
[1674061700204,14.0,1552.8,1552.3,1.0]
[1674061700525,3.0,1552.7,1551.7,0.10355113]
[1674061700731,3.0,1552.7,1552.2,1.0]
[1674061700988,3.0,1552.7,1551.7,0.10355113]
[1674061700989,0.3,1552.6,1551.8,0.06]
[1674061701173,0.3,1552.6,1551.7,0.10355113]
[1674061701383,0.82281452,1552.5,1551.5,6.5098488]
[1674061701576,14.0,1552.1,1551.5,0.0707688]
[1674061701788,0.064,1552.1,1551.5,0.0047688]
[1674061702012,0.002,1552.1,1551.6,0.06222]
[1674061702214,0.08389812,1552.1,1551.6,0.06222]
[1674061702423,1.426,1552.6,1551.6,6.50679]
[1674061702674,1.426,1552.6,1551.6,6.57279]
[1674061702675,1.3,1552.6,1551.6,6.57279]
[1674061702844,1.0,1552.3,1551.6,6.57279]
[1674061703055,14.0,1552.4,1551.8,19.33142]
[1674061703308,14.0,1552.3,1551.8,12.95358]
[1674061703638,0.066,1552.3,1551.8,6.50979]
[1674061703834,14.0,1552.4,1551.8,6.50979]
[1674061703835,0.066,1552.4,1551.8,6.50979]
[1674061703986,2.856,1552.8,1551.8,6.54471222]
[1674061704212,1.0,1552.3,1551.8,12.98883222]
[1674061704407,1.0,1552.3,1551.8,0.10098222]
[1674061704617,1.0,1552.3,1551.7,6.54522447]
[1674061704827,0.1,1552.2,1551.7,6.54522447]
[1674061705303,14.0,1552.6,1551.7,6.54522447]
[1674061705461,14.066,1552.6,1551.7,6.54522447]
[1674061705676,1.0,1552.5,1551.7,6.54522447]
[1674061705904,0.1,1552.4,1551.7,0.066]
[1674061706092,0.1,1552.4,1551.5,6.4497588]
[1674061706457,0.1,1552.4,1551.5,12.9611288]
[1674061706677,0.1,1552.4,1551.5,6.5157588]
[1674061706678,14.0,1552.0,1551.5,6.5157588]
[1674061706824,1.4,1551.9,1551.5,6.5157588]
[1674061707034,1.4,1551.9,1551.5,0.0707688]
[1674061707035,14.0,1551.7,1551.5,0.0707688]
[1674061707288,0.066,1551.7,1551.5,0.0047688]
[1674061707506,17.066,1552.2,1551.5,0.0047688]
[1674061707784,1.7,1552.1,1551.5,6.4498388]
[1674061707996,0.226,1552.4,1551.5,6.5158388]
[1674061708238,0.1,1552.4,1551.5,6.5158388]
[1674061708767,0.91346452,1552.3,1551.5,6.5158388]
[1674061708980,14.91346452,1552.3,1551.5,6.5158388]
[1674061709300,14.0,1552.1,1551.5,0.0707688]
[1674061709468,14.016,1552.1,1551.5,0.0047688]
[1674061709821,14.0,1551.7,1551.5,0.0047688]
[1674061710025,4.69174759,1551.6,1551.5,0.0047688]
[1674061710207,3.29174759,1551.6,1551.5,0.0047688]
[1674061711596,6.29174759,1551.6,1551.5,0.0047688]
[1674061711952,6.35774759,1551.6,1551.5,0.0047688]
[1674061712158,28.35774759,1551.6,1551.5,0.0007688]
[1674061712494,6.35774759,1551.6,1551.5,0.0007688]
[1674061712654,8.67912235,1551.6,1551.5,0.0007688]
[1674061712851,9.67912235,1551.6,1551.5,0.0007688]
[1674061713062,17.90912235,1551.6,1551.5,0.0007688]
[1674061713270,17.90912235,1551.6,1551.1,0.02802281]
[1674061713533,3.29174759,1551.2,1551.1,0.02802281]
[1674061713750,3.62092235,1551.2,1551.1,2.281e-05]
[1674061714106,0.066,1551.3,1551.1,2.281e-05]
[1674061714329,4.06,1551.5,1551.1,2.281e-05]
[1674061714330,3.066,1551.5,1551.1,2.281e-05]
[1674061714586,3.0,1551.5,1551.1,2.281e-05]
[1674061714799,1.0,1551.4,1551.1,2.281e-05]
[1674061714970,15.06,1551.8,1551.1,2.281e-05]
[1674061714971,1.506,1551.7,1551.1,2.281e-05]
[1674061715164,0.066,1551.8,1551.2,12.89324]
[1674061715376,1.49134645,1552.2,1551.2,12.95924]
[1674061715377,1.61734645,1552.2,1551.2,12.95924]
[1674061715630,14.0,1552.4,1551.4,3.0]
[1674061715631,1.0,1552.1,1551.4,3.0]
[1674061715841,0.066,1552.4,1551.5,0.3]
[1674061715842,0.06,1552.4,1551.5,0.3]
[1674061716011,0.06,1552.6,1552.1,8.23292238]
[1674061716213,0.22972629,1552.9,1552.1,1.85637238]
[1674061716425,1.0,1552.8,1552.1,1.79037238]
[1674061717113,0.22972629,1552.9,1552.1,8.23289238]
[1674061717301,0.22972629,1552.9,1552.1,8.29889238]
[1674061717475,0.22972629,1552.9,1552.1,8.29689238]
[1674061717684,0.22972629,1552.9,1552.1,8.29889238]
[1674061718584,1e-08,1552.9,1552.2,1.0]
[1674061718795,1e-08,1552.9,1552.4,6.44162]
[1674061718957,1e-08,1552.9,1552.4,0.066]
[1674061719174,1e-08,1552.9,1552.1,1.79037238]
[1674061719407,1e-08,1552.9,1552.1,8.23284238]
[1674061719683,1e-08,1552.9,1552.1,8.29884238]
[1674061719684,3.2917476,1552.9,1552.1,8.29884238]
[1674061720023,3.2917476,1552.9,1552.1,8.29684238]
[1674061720024,14.0,1552.7,1552.1,8.29684238]
[1674061720207,14.0,1552.7,1552.1,1.85637238]
[1674061720208,17.35774759,1552.7,1552.1,1.85637238]
[1674061720425,1.0,1552.5,1552.1,1.79037238]
[1674061720629,18.0,1552.5,1552.1,1.79037238]
[1674061720842,1.0,1552.2,1551.7,0.03]
[1674061721100,3.29174759,1551.8,1551.2,7.44629]
[1674061721271,4.92310808,1552.4,1551.3,0.03573577]
[1674061721272,0.126,1552.1,1551.3,0.03573577]
[1674061721489,0.06,1552.4,1551.8,2.38727475]
[1674061721837,17.29174759,1552.3,1551.8,2.38727475]
[1674061722050,5.02092235,1552.2,1551.8,2.38727475]
[1674061722209,5.08692235,1552.2,1551.8,2.38727475]
[1674061722479,3.29174759,1552.1,1551.8,2.38727475]
[1674061722900,3.29174759,1552.0,1551.8,2.38727475]
[1674061723156,17.29174759,1551.9,1551.8,2.38727475]
[1674061723367,3.35774759,1551.9,1551.8,2.38727475]
[1674061723582,0.066,1552.0,1551.8,2.38727475]
[1674061723735,3.29174759,1552.0,1551.8,2.38727475]
[1674061723946,14.0,1551.9,1551.8,2.38727475]
[1674061724155,19.08692235,1551.9,1551.8,2.38727475]
[1674061724360,3.29174759,1551.5,1551.3,0.066]
[1674061724689,17.29174759,1551.4,1551.1,2.281e-05]
[1674061724895,17.35774759,1551.4,1551.1,2.281e-05]
[1674061725107,3.29174759,1551.2,1551.1,2.281e-05]
[1674061725658,7.29174759,1551.2,1551.1,2.281e-05]
[1674061725870,6.35774759,1551.2,1551.1,2.281e-05]
[1674061726080,3.35774759,1551.2,1551.1,2.281e-05]
[1674061726258,3.29174759,1551.2,1551.1,2.281e-05]
[1674061727577,20.29174759,1551.2,1551.1,2.281e-05]
[1674061727783,28.35774759,1551.2,1551.1,2.281e-05]
[1674061728162,6.35774759,1551.2,1550.5,0.03414503]
[1674061728385,3.29174759,1551.0,1550.5,0.03414503]
[1674061728572,3.29174759,1550.9,1550.5,0.03414503]
[1674061729040,0.066,1551.2,1550.5,3.32589262]
[1674061729247,3.29174759,1551.2,1550.6,1.0]
[1674061729472,3.29174759,1551.0,1550.5,0.10014503]
[1674061729782,3.29174759,1551.0,1550.5,0.03414503]
[1674061729938,0.066,1551.2,1550.5,6.48362503]
[1674061730164,14.066,1551.6,1550.6,1.11978255]
[1674061730406,3.29174759,1551.5,1550.7,2.11966413]
[1674061730621,3.29174759,1551.5,1550.7,1.0]
[1674061730900,17.62092235,1551.4,1550.5,0.096]
[1674061731115,0.066,1551.4,1550.4,0.81219065]
[1674061731425,3.5,1551.5,1550.6,1.0]
[1674061731639,0.066,1551.6,1550.6,1.0]
[1674061731895,14.06,1551.7,1550.6,1.0]
[1674061731896,0.066,1551.7,1550.6,1.0]
[1674061732117,3.29174759,1551.7,1550.7,4.51145926]
[1674061732305,0.126,1551.8,1550.9,7.44753]
[1674061732631,0.06,1552.1,1551.2,6.44661]
[1674061732802,3.73173076,1552.4,1551.2,13.603891]
[1674061732803,0.29173076,1552.4,1551.2,13.603891]
[1674061733014,0.29173076,1552.4,1551.2,17.163891]
[1674061733015,0.23173076,1552.4,1551.2,17.163891]
[1674061733248,0.23173076,1552.4,1551.6,6.44483]
[1674061733462,0.35490384,1552.4,1551.6,6.51083]
[1674061733647,0.0102545,1552.1,1551.6,0.066]
[1674061733858,14.0102545,1552.1,1551.4,0.126]
[1674061734076,14.0,1551.9,1551.2,1.74536013]
[1674061734279,0.03414503,1551.8,1551.0,12.96054]
[1674061734495,1.43414503,1551.8,1551.0,6.51312]
[1674061734791,1.43414503,1551.8,1551.0,0.066]
[1674061735045,14.0,1551.6,1550.7,0.66518546]
[1674061735375,0.066,1551.6,1550.7,7.56823665]
[1674061735537,0.002,1551.6,1550.9,6.4475]
[1674061735733,3.0,1552.0,1550.9,6.5135]
[1674061735942,14.0,1551.8,1550.9,0.066]
[1674061736147,0.066,1551.8,1550.8,1.0]
[1674061736362,3.49002391,1552.0,1550.8,4.03]
[1674061736363,0.06,1552.0,1550.8,4.03]
[1674061736624,9.5194445,1552.1,1550.8,4.03]
[1674061736625,17.29174759,1551.6,1550.8,0.06]
[1674061736780,17.29174759,1551.6,1550.7,0.66518546]
[1674061736781,3.29174759,1551.4,1550.7,0.66518546]
[1674061737251,3.29174759,1551.3,1550.5,0.73118546]
[1674061737465,3.066,1551.5,1550.5,0.73118546]
[1674061737466,3.32589262,1551.2,1550.5,0.014]
[1674061737695,0.03414503,1551.2,1550.4,1.47737611]
[1674061737913,0.03414503,1551.2,1550.5,1.11987176]
[1674061738224,3.32589262,1551.2,1550.6,1.0]
[1674061738416,3.32589262,1551.2,1550.4,1.47737611]
[1674061738417,6.29174759,1551.1,1550.4,0.066]
[1674061738632,0.03414503,1551.0,1550.3,2.12596151]
[1674061738818,0.03414503,1551.0,1550.3,8.57598151]
[1674061739165,0.126,1551.5,1551.0,0.10243509]
[1674061739484,3.32589262,1551.4,1551.0,0.10243509]
[1674061739643,0.03414503,1551.4,1551.0,0.10243509]
[1674061739857,3.32589262,1551.4,1551.0,0.10243509]
[1674061740167,0.03414503,1551.4,1551.0,0.10243509]
[1674061740430,3.29174759,1551.3,1551.0,0.10243509]
[1674061740642,0.10014503,1551.4,1551.0,0.00243509]
[1674061740832,0.05,1551.4,1551.0,0.00243509]
[1674061741054,0.0702545,1552.1,1551.0,12.89726509]
[1674061741227,0.0702545,1552.1,1551.1,6.07441491]
[1674061741228,0.0102545,1552.1,1551.1,6.07441491]
[1674061741584,0.0102545,1552.1,1551.1,0.096]
[1674061741800,0.0102545,1552.1,1551.0,1.02196874]
[1674061741965,0.0102545,1552.1,1551.0,0.09468509]
[1674061741966,14.0,1551.9,1551.0,0.09468509]
[1674061742316,14.0,1551.9,1551.0,0.06468509]
[1674061742317,8.0,1551.7,1551.0,0.06468509]
[1674061742529,0.83414503,1551.6,1551.0,0.00243509]
[1674061742845,14.0,1551.5,1551.0,0.00243509]
[1674061743060,14.066,1551.5,1551.0,0.00243509]
[1674061743214,3.03414503,1551.4,1551.0,0.00243509]
[1674061743422,0.3034145,1551.3,1550.6,1.78506119]
[1674061743651,1.0,1551.2,1550.4,0.126]
[1674061743842,6.44658,1551.3,1550.3,1.12596151]
[1674061743843,0.03414503,1551.1,1550.3,1.12596151]
[1674061744083,3.0,1551.4,1550.5,0.63674173]
[1674061744290,0.126,1551.5,1550.6,6.44908]
[1674061744291,0.066,1551.5,1550.6,6.44908]
[1674061744482,13.01364,1551.9,1550.7,1.76473907]
[1674061744695,0.126,1551.9,1550.8,5.28483498]
[1674061744954,0.0102545,1552.1,1550.9,11.73235498]
[1674061744955,0.0702545,1552.1,1550.9,11.73235498]
[1674061745112,0.13229734,1552.1,1551.1,1.0]
[1674061745474,0.13229734,1552.1,1551.0,7.6732355]
[1674061745475,14.0,1551.9,1551.0,0.126]
[1674061745686,14.0,1551.9,1550.9,6.44752]
[1674061745687,1.4,1551.8,1550.9,0.066]
[1674061745839,0.06,1551.9,1550.7,12.67807109]
[1674061746045,14.0,1551.9,1550.9,0.66518546]
[1674061746314,14.0,1551.5,1550.7,0.126]
[1674061746484,0.03414503,1551.4,1550.6,0.66518546]
[1674061746698,0.03414503,1551.4,1550.7,0.06226]
[1674061746925,0.03414503,1551.4,1550.8,0.00347687]
[1674061746926,3.03414503,1551.4,1550.8,0.00347687]
[1674061747147,0.03414503,1551.4,1550.9,0.06225]
[1674061747336,14.0,1551.2,1550.4,1.0]
[1674061747553,3.29174759,1551.0,1550.4,1.0]
[1674061747757,3.29174759,1551.0,1550.5,0.06227]
[1674061747954,3.62433685,1551.0,1550.5,0.06227]
[1674061748166,3.65848188,1551.0,1550.5,0.06227]
[1674061748735,3.65848188,1551.0,1550.3,1.12596151]
[1674061749112,3.29174759,1550.9,1550.4,1.0]